[Event "Early-Titled-Tuesday-Blitz-May-07-2024"]
[Site "Chess.com"]
[Date "2024.05.07"]
[Round "4"]
[White "Anu-triz"]
[Black "Manukyan_Artak"]
[Result "0-1"]
[WhiteElo "2296"]
[BlackElo "2534"]
[TimeControl "180+1"]
[EndTime "8:43:00 PDT"]
[Termination "Manukyan_Artak won by resignation"]

1. g3 {[%clk 0:03:00.9]} 1... g6 {[%clk 0:02:40.3]} 2. Bg2 {[%clk 0:03:01.6]}
2... h5 {[%clk 0:02:38.6]} 3. Nf3 {[%clk 0:03:02.5]} 3... Nc6 {[%clk 0:02:37.1]}
4. h4 {[%clk 0:03:01.7]} 4... e5 {[%clk 0:02:37]} 5. d3 {[%clk 0:03:00.9]} 5...
d5 {[%clk 0:02:36.7]} 6. b3 {[%clk 0:02:59.1]} 6... Bb4+ {[%clk 0:02:31.3]} 7.
Nbd2 {[%clk 0:02:57.6]} 7... Bc3 {[%clk 0:02:27.8]} 8. Rb1 {[%clk 0:02:57.6]}
8... f5 {[%clk 0:02:23]} 9. Bb2 {[%clk 0:02:57.3]} 9... Bxb2 {[%clk 0:02:19.1]}
10. Rxb2 {[%clk 0:02:58.2]} 10... Nf6 {[%clk 0:02:18.3]} 11. Ng5 {[%clk
0:02:55.7]} 11... O-O {[%clk 0:02:17.1]} 12. O-O {[%clk 0:02:55.1]} 12... Nh7
{[%clk 0:02:12.2]} 13. Nxh7 {[%clk 0:02:51]} 13... Kxh7 {[%clk 0:02:13.1]} 14.
e4 {[%clk 0:02:51.5]} 14... fxe4 {[%clk 0:02:12.1]} 15. dxe4 {[%clk 0:02:52.3]}
15... d4 {[%clk 0:02:12.3]} 16. Nf3 {[%clk 0:02:50.8]} 16... Bg4 {[%clk
0:02:09.6]} 17. Ng5+ {[%clk 0:02:50.1]} 17... Qxg5 {[%clk 0:02:06.1]} 18. hxg5
{[%clk 0:02:51]} 18... Bxd1 {[%clk 0:02:05.8]} 19. Rxd1 {[%clk 0:02:51.9]} 19...
Rad8 {[%clk 0:02:00.2]} 20. Rbb1 {[%clk 0:02:51.2]} 20... Nb4 {[%clk 0:01:56.8]}
21. Rb2 {[%clk 0:02:49.1]} 21... c5 {[%clk 0:01:51.7]} 22. a3 {[%clk 0:02:49.1]}
22... Nc6 {[%clk 0:01:49.6]} 23. Rbb1 {[%clk 0:02:49.8]} 23... b5 {[%clk
0:01:47.8]} 24. Rd3 {[%clk 0:02:47.3]} 24... c4 {[%clk 0:01:42.9]} 25. bxc4
{[%clk 0:02:48.2]} 25... bxc4 {[%clk 0:01:43.5]} 26. Rb7+ {[%clk 0:02:47.8]}
26... Kg8 {[%clk 0:01:40.9]} 27. Rd1 {[%clk 0:02:48]} 27... Rf7 {[%clk
0:01:39.2]} 28. Rxf7 {[%clk 0:02:42]} 28... Kxf7 {[%clk 0:01:40.1]} 29. Bf1
{[%clk 0:02:42.5]} 29... Na5 {[%clk 0:01:38.1]} 30. Rb1 {[%clk 0:02:41.7]} 30...
d3 {[%clk 0:01:33.9]} 31. cxd3 {[%clk 0:02:39.6]} 31... cxd3 {[%clk 0:01:34.3]}
32. Rd1 {[%clk 0:02:38.6]} 32... d2 {[%clk 0:01:34.4]} 33. f4 {[%clk 0:02:37.2]}
33... Ke7 {[%clk 0:01:26.1]} 34. Kf2 {[%clk 0:02:36.5]} 34... Nb3 {[%clk
0:01:25.4]} 35. Ke3 {[%clk 0:02:35.4]} 35... Rc8 {[%clk 0:01:18.3]} 36. f5
{[%clk 0:02:29.2]} 36... Rc3+ {[%clk 0:01:13.2]} 37. Kf2 {[%clk 0:02:19.5]}
37... Rc1 {[%clk 0:01:00.2]} 38. Be2 {[%clk 0:02:17.9]} 38... Nc5 {[%clk
0:00:34.4]} 39. Ke3 {[%clk 0:02:12.4]} 39... Rc3+ {[%clk 0:00:31.6]} 40. Kxd2
{[%clk 0:02:02.4]} 40... Nxe4+ {[%clk 0:00:31.8]} 41. Ke1 {[%clk 0:02:00.6]}
41... gxf5 {[%clk 0:00:29.4]} 42. Bxh5 {[%clk 0:01:45]} 42... Rxg3 {[%clk
0:00:23.5]} 43. Rd5 {[%clk 0:01:19.7]} 43... Rxg5 {[%clk 0:00:18.2]} 44. Bf3
{[%clk 0:01:11.9]} 44... Rg1+ {[%clk 0:00:15.5]} 45. Ke2 {[%clk 0:01:11.2]}
45... Nc3+ {[%clk 0:00:15.7]} 46. Kf2 {[%clk 0:01:11.8]} 46... Nxd5 {[%clk
0:00:15.3]} 47. Kxg1 {[%clk 0:01:12.7]} 47... e4 {[%clk 0:00:15.5]} 48. Be2
{[%clk 0:01:11.9]} 48... Kd6 {[%clk 0:00:15.2]} 49. Kf2 {[%clk 0:01:11.8]} 49...
f4 {[%clk 0:00:15.4]} 50. Bg4 {[%clk 0:01:09.4]} 50... Ke5 {[%clk 0:00:15.7]}
51. Ke2 {[%clk 0:01:07.5]} 51... Nc3+ {[%clk 0:00:12.4]} 52. Kf2 {[%clk
0:01:07]} 52... Kd4 {[%clk 0:00:12.9]} 53. Bf5 {[%clk 0:01:06]} 53... Nd5 {[%clk
0:00:10.4]} 54. Ke2 {[%clk 0:01:05.2]} 54... Ke5 {[%clk 0:00:07.1]} 55. Bg4
{[%clk 0:01:03.6]} 55... Nf6 {[%clk 0:00:08]} 56. Bc8 {[%clk 0:01:02.5]} 56...
f3+ {[%clk 0:00:07.6]} 57. Kf2 {[%clk 0:01:00]} 57... Kf4 {[%clk 0:00:07.2]} 58.
Ba6 {[%clk 0:00:57.6]} 58... e3+ {[%clk 0:00:08.1]} 59. Ke1 {[%clk 0:00:57.7]}
59... Ne4 {[%clk 0:00:08.4]} 60. Bc4 {[%clk 0:00:56.1]} 60... Ng3 {[%clk
0:00:08.3]} 61. Bb5 {[%clk 0:00:50.8]} 61... f2+ {[%clk 0:00:08.4]} 62. Kd1
{[%clk 0:00:50.8]} 62... f1=Q+ {[%clk 0:00:09.2]} 0-1

[Event "Early-Titled-Tuesday-Blitz-May-07-2024"]
[Site "Chess.com"]
[Date "2024.05.07"]
[Round "4"]
[White "WindWhistler11"]
[Black "Zapateado"]
[Result "1-0"]
[WhiteElo "2559"]
[BlackElo "2384"]
[TimeControl "180+1"]
[EndTime "8:43:01 PDT"]
[Termination "WindWhistler11 won on time"]

1. Nf3 {[%clk 0:03:00.9]} 1... c5 {[%clk 0:03:00.3]} 2. g3 {[%clk 0:02:59.3]}
2... g6 {[%clk 0:03:00.9]} 3. Bg2 {[%clk 0:02:58.9]} 3... Bg7 {[%clk 0:03:01.6]}
4. O-O {[%clk 0:02:59.2]} 4... Nc6 {[%clk 0:03:01.9]} 5. d3 {[%clk 0:02:58.1]}
5... e5 {[%clk 0:03:02.1]} 6. Nbd2 {[%clk 0:02:57.6]} 6... Nge7 {[%clk
0:03:02.6]} 7. e4 {[%clk 0:02:58.1]} 7... O-O {[%clk 0:03:02.9]} 8. a3 {[%clk
0:02:58.6]} 8... d6 {[%clk 0:03:03.1]} 9. Rb1 {[%clk 0:02:59.2]} 9... h6 {[%clk
0:03:00.2]} 10. b4 {[%clk 0:02:59.5]} 10... a6 {[%clk 0:03:00.9]} 11. c3 {[%clk
0:02:50.1]} 11... Be6 {[%clk 0:03:00.2]} 12. Nb3 {[%clk 0:02:45.1]} 12... b6
{[%clk 0:02:56.2]} 13. Be3 {[%clk 0:02:35.8]} 13... Qd7 {[%clk 0:02:51.7]} 14.
bxc5 {[%clk 0:02:21.3]} 14... dxc5 {[%clk 0:02:46.1]} 15. Qc2 {[%clk 0:02:20]}
15... f5 {[%clk 0:02:35.3]} 16. Rbd1 {[%clk 0:02:08.3]} 16... f4 {[%clk
0:02:35.4]} 17. Bc1 {[%clk 0:02:08]} 17... g5 {[%clk 0:02:30.3]} 18. Rfe1 {[%clk
0:02:05.7]} 18... Bg4 {[%clk 0:02:23.9]} 19. Qe2 {[%clk 0:01:36.8]} 19... Qe6
{[%clk 0:02:10.7]} 20. Nbd2 {[%clk 0:01:35]} 20... Rad8 {[%clk 0:02:03.8]} 21.
Qf1 {[%clk 0:01:34.5]} 21... Bxf3 {[%clk 0:01:43.9]} 22. Nxf3 {[%clk 0:01:24.3]}
22... g4 {[%clk 0:01:43.8]} 23. Nh4 {[%clk 0:01:23.4]} 23... f3 {[%clk 0:01:43]}
24. Bh1 {[%clk 0:01:24]} 24... h5 {[%clk 0:01:23.8]} 25. Bg5 {[%clk 0:01:16.9]}
25... Bf6 {[%clk 0:01:08.9]} 26. Bxf6 {[%clk 0:01:13.8]} 26... Rxf6 {[%clk
0:01:05]} 27. Re3 {[%clk 0:01:09.6]} 27... Ng6 {[%clk 0:01:02.2]} 28. Nf5 {[%clk
0:01:07]} 28... Nce7 {[%clk 0:01:02.1]} 29. Nxe7+ {[%clk 0:01:04.9]} 29... Qxe7
{[%clk 0:01:03]} 30. d4 {[%clk 0:00:59.6]} 30... exd4 {[%clk 0:00:46]} 31. cxd4
{[%clk 0:01:00.5]} 31... cxd4 {[%clk 0:00:46.3]} 32. Qc4+ {[%clk 0:00:59.2]}
32... Kg7 {[%clk 0:00:22.7]} 33. Rxd4 {[%clk 0:00:55.9]} 33... Rxd4 {[%clk
0:00:21.7]} 34. Qxd4 {[%clk 0:00:56.1]} 34... Qe5 {[%clk 0:00:20.4]} 35. Qd7+
{[%clk 0:00:44.5]} 35... Rf7 {[%clk 0:00:17.3]} 36. Qd1 {[%clk 0:00:44.8]} 36...
Rc7 {[%clk 0:00:16]} 37. Bxf3 {[%clk 0:00:42.7]} 37... gxf3 {[%clk 0:00:15.9]}
38. Qxf3 {[%clk 0:00:43.6]} 38... Rf7 {[%clk 0:00:15.5]} 39. Qe2 {[%clk
0:00:43.2]} 39... Qa1+ {[%clk 0:00:14.9]} 40. Kg2 {[%clk 0:00:43.6]} 40... Qe5
{[%clk 0:00:12.1]} 41. f4 {[%clk 0:00:43.4]} 41... Qa5 {[%clk 0:00:10.1]} 42. f5
{[%clk 0:00:42]} 42... Ne5 {[%clk 0:00:07.6]} 43. Qxh5 {[%clk 0:00:42]} 43...
Qd2+ {[%clk 0:00:07.5]} 44. Re2 {[%clk 0:00:42.6]} 44... Qd3 {[%clk 0:00:05.5]}
45. Qg5+ {[%clk 0:00:42.3]} 45... Kf8 {[%clk 0:00:06.2]} 46. Qh6+ {[%clk
0:00:37.3]} 46... Kg8 {[%clk 0:00:03.6]} 47. Rd2 {[%clk 0:00:32.7]} 47... Qxe4+
{[%clk 0:00:03.1]} 48. Kf2 {[%clk 0:00:30.3]} 48... Qxf5+ {[%clk 0:00:02.5]} 49.
Ke3 {[%clk 0:00:27.8]} 49... Qf3+ {[%clk 0:00:02.5]} 50. Kd4 {[%clk 0:00:28.7]}
50... Rd7+ {[%clk 0:00:01.7]} 51. Kxe5 {[%clk 0:00:27.5]} 51... Re7+ {[%clk
0:00:02.3]} 52. Kd6 {[%clk 0:00:27.3]} 52... Qf7 {[%clk 0:00:01.4]} 53. Qg5+
{[%clk 0:00:26.9]} 53... Kf8 {[%clk 0:00:01.6]} 54. Rf2 {[%clk 0:00:26.8]} 1-0

[Event "Early-Titled-Tuesday-Blitz-May-07-2024"]
[Site "Chess.com"]
[Date "2024.05.07"]
[Round "4"]
[White "alvarorodriguezavila"]
[Black "ilushka"]
[Result "1/2-1/2"]
[WhiteElo "2349"]
[BlackElo "2520"]
[TimeControl "180+1"]
[EndTime "8:43:01 PDT"]
[Termination "Game drawn by repetition"]

1. e4 {[%clk 0:02:54.5]} 1... c5 {[%clk 0:02:59.4]} 2. d4 {[%clk 0:02:52.6]}
2... cxd4 {[%clk 0:02:59.3]} 3. c3 {[%clk 0:02:53.2]} 3... d3 {[%clk 0:02:57.5]}
4. Nf3 {[%clk 0:02:53.1]} 4... Nc6 {[%clk 0:02:57.5]} 5. Bxd3 {[%clk 0:02:52.8]}
5... g6 {[%clk 0:02:58.1]} 6. O-O {[%clk 0:02:52.3]} 6... Bg7 {[%clk 0:02:58.7]}
7. c4 {[%clk 0:02:52]} 7... d6 {[%clk 0:02:59.3]} 8. h3 {[%clk 0:02:52.3]} 8...
Nf6 {[%clk 0:02:59.6]} 9. Nc3 {[%clk 0:02:52.8]} 9... O-O {[%clk 0:02:59.9]} 10.
Qe2 {[%clk 0:02:48.7]} 10... a5 {[%clk 0:02:59.5]} 11. Rd1 {[%clk 0:02:47.7]}
11... a4 {[%clk 0:02:59.8]} 12. a3 {[%clk 0:02:35.5]} 12... Qa5 {[%clk
0:02:58.5]} 13. Bg5 {[%clk 0:02:27.3]} 13... Be6 {[%clk 0:02:40.9]} 14. Nd5
{[%clk 0:02:12.8]} 14... Bxd5 {[%clk 0:02:40.5]} 15. exd5 {[%clk 0:02:13.3]}
15... Ne5 {[%clk 0:02:21.7]} 16. Nxe5 {[%clk 0:02:08.9]} 16... dxe5 {[%clk
0:02:22.6]} 17. Qxe5 {[%clk 0:02:03.7]} 17... h6 {[%clk 0:02:20.6]} 18. Bd2
{[%clk 0:02:01.1]} 18... Qc5 {[%clk 0:02:15.7]} 19. Qe2 {[%clk 0:02:00.6]} 19...
Rfe8 {[%clk 0:02:10.6]} 20. Bb4 {[%clk 0:01:55.9]} 20... Qc7 {[%clk 0:02:10]}
21. Bc3 {[%clk 0:01:52]} 21... Rad8 {[%clk 0:02:03.6]} 22. Bc2 {[%clk
0:01:46.1]} 22... e6 {[%clk 0:01:54.9]} 23. Bxa4 {[%clk 0:01:45.4]} 23... Re7
{[%clk 0:01:46.2]} 24. d6 {[%clk 0:01:40.7]} 24... Rxd6 {[%clk 0:01:45.7]} 25.
Rxd6 {[%clk 0:01:41.6]} 25... Qxd6 {[%clk 0:01:39.7]} 26. Bb4 {[%clk 0:01:42.2]}
26... Qc7 {[%clk 0:01:40.2]} 27. Bxe7 {[%clk 0:01:42.3]} 27... Qxe7 {[%clk
0:01:41.1]} 28. Rd1 {[%clk 0:01:40]} 28... Nh5 {[%clk 0:01:40.6]} 29. g3 {[%clk
0:01:33.6]} 29... Qc5 {[%clk 0:01:34.8]} 30. Kg2 {[%clk 0:01:27.1]} 30... Qg5
{[%clk 0:01:28.6]} 31. Qg4 {[%clk 0:01:10.4]} 31... Qa5 {[%clk 0:01:27.2]} 32.
Bc2 {[%clk 0:00:51.5]} 32... Bxb2 {[%clk 0:01:21.7]} 33. Bxg6 {[%clk 0:00:38]}
33... fxg6 {[%clk 0:01:22.6]} 34. Qxe6+ {[%clk 0:00:38.3]} 34... Kh7 {[%clk
0:01:21.3]} 35. Rd7+ {[%clk 0:00:29.7]} 35... Ng7 {[%clk 0:01:19.2]} 36. Qf7
{[%clk 0:00:24.8]} 36... b6 {[%clk 0:01:03.7]} 37. Rd6 {[%clk 0:00:18.2]} 37...
Qh5 {[%clk 0:00:57.6]} 38. Rxb6 {[%clk 0:00:16.8]} 38... Bxa3 {[%clk 0:00:49.8]}
39. Rb5 {[%clk 0:00:17.1]} 39... Qe2 {[%clk 0:00:46.5]} 40. Rb7 {[%clk 0:00:11]}
40... Bb2 {[%clk 0:00:46.3]} 41. c5 {[%clk 0:00:11.4]} 41... Bd4 {[%clk
0:00:42.6]} 42. c6 {[%clk 0:00:09.2]} 42... Qc2 {[%clk 0:00:20.6]} 43. c7 {[%clk
0:00:07.5]} 43... h5 {[%clk 0:00:20.5]} 44. Qf8 {[%clk 0:00:04.7]} 44... Qc6+
{[%clk 0:00:12.7]} 45. Qf3 {[%clk 0:00:03.8]} 45... Qc2 {[%clk 0:00:12.7]} 46.
Qf8 {[%clk 0:00:01.2]} 46... Qc6+ {[%clk 0:00:12.2]} 47. Qf3 {[%clk 0:00:01.9]}
47... Qc2 {[%clk 0:00:12.6]} 48. Qf8 {[%clk 0:00:02.1]} 1/2-1/2

[Event "Early-Titled-Tuesday-Blitz-May-07-2024"]
[Site "Chess.com"]
[Date "2024.05.07"]
[Round "4"]
[White "Artemiki"]
[Black "penguingm1"]
[Result "0-1"]
[WhiteElo "2499"]
[BlackElo "2922"]
[TimeControl "180+1"]
[EndTime "8:43:02 PDT"]
[Termination "penguingm1 won by checkmate"]

1. e4 {[%clk 0:03:00.9]} 1... e5 {[%clk 0:02:59.8]} 2. Nf3 {[%clk 0:03:00.9]}
2... Nc6 {[%clk 0:03:00.4]} 3. Nc3 {[%clk 0:02:59]} 3... Nf6 {[%clk 0:02:58.6]}
4. d4 {[%clk 0:02:58.9]} 4... exd4 {[%clk 0:02:59.2]} 5. Nd5 {[%clk 0:02:58.6]}
5... Be7 {[%clk 0:02:59.2]} 6. Bf4 {[%clk 0:02:58.2]} 6... d6 {[%clk 0:02:56.6]}
7. Nxd4 {[%clk 0:02:58.3]} 7... O-O {[%clk 0:02:44.6]} 8. Nxc6 {[%clk
0:02:57.4]} 8... bxc6 {[%clk 0:02:44.4]} 9. Nxe7+ {[%clk 0:02:58]} 9... Qxe7
{[%clk 0:02:44.7]} 10. f3 {[%clk 0:02:58.6]} 10... Nxe4 {[%clk 0:01:08.4]} 11.
Qe2 {[%clk 0:02:56.5]} 11... Re8 {[%clk 0:01:08.8]} 12. O-O-O {[%clk 0:02:41.9]}
12... Nc5 {[%clk 0:00:54.8]} 13. Qxe7 {[%clk 0:02:35.3]} 13... Rxe7 {[%clk
0:00:55.7]} 14. h4 {[%clk 0:02:28]} 14... a5 {[%clk 0:00:52.7]} 15. b3 {[%clk
0:02:11]} 15... Be6 {[%clk 0:00:48.9]} 16. a4 {[%clk 0:02:06.1]} 16... Rb8
{[%clk 0:00:41.6]} 17. Bd2 {[%clk 0:01:41.7]} 17... Bd5 {[%clk 0:00:32.5]} 18.
Re1 {[%clk 0:01:23.5]} 18... Rd7 {[%clk 0:00:30]} 19. h5 {[%clk 0:01:18.4]}
19... h6 {[%clk 0:00:29.9]} 20. Rh4 {[%clk 0:01:09.3]} 20... Ra8 {[%clk
0:00:24.8]} 21. Bc3 {[%clk 0:01:08]} 21... Ne6 {[%clk 0:00:23.1]} 22. Bxg7
{[%clk 0:01:01.8]} 22... Nxg7 {[%clk 0:00:21.4]} 23. c4 {[%clk 0:00:45.5]} 23...
Be6 {[%clk 0:00:21.8]} 24. Bd3 {[%clk 0:00:44.1]} 24... Rb8 {[%clk 0:00:22.3]}
25. Bc2 {[%clk 0:00:43.3]} 25... d5 {[%clk 0:00:19]} 26. c5 {[%clk 0:00:40.6]}
26... d4 {[%clk 0:00:19.4]} 27. Rd1 {[%clk 0:00:40.2]} 27... Bxb3 {[%clk
0:00:19.4]} 28. Rdxd4 {[%clk 0:00:38.4]} 28... Rxd4 {[%clk 0:00:19.4]} 29. Rxd4
{[%clk 0:00:39.3]} 29... Bxc2 {[%clk 0:00:20.3]} 30. Kxc2 {[%clk 0:00:40.2]}
30... Ne6 {[%clk 0:00:21.1]} 31. Rd7 {[%clk 0:00:38.3]} 31... Kf8 {[%clk
0:00:20.9]} 32. g4 {[%clk 0:00:37.5]} 32... Ke8 {[%clk 0:00:21.1]} 33. Rd1
{[%clk 0:00:37.2]} 33... Nxc5 {[%clk 0:00:21.7]} 34. f4 {[%clk 0:00:36.2]} 34...
Ne6 {[%clk 0:00:20.5]} 35. Rf1 {[%clk 0:00:36]} 35... Rb4 {[%clk 0:00:20.2]} 36.
g5 {[%clk 0:00:34.3]} 36... Rxf4 {[%clk 0:00:19.7]} 37. gxh6 {[%clk 0:00:32.1]}
37... Rh4 {[%clk 0:00:16]} 38. Rg1 {[%clk 0:00:18.5]} 38... Rxh5 {[%clk
0:00:15.8]} 39. Rg8+ {[%clk 0:00:19]} 39... Ke7 {[%clk 0:00:16.4]} 40. Rh8
{[%clk 0:00:19.9]} 40... Nf8 {[%clk 0:00:14]} 41. Kc3 {[%clk 0:00:18.6]} 41...
Rh4 {[%clk 0:00:13.7]} 42. Kb3 {[%clk 0:00:18.6]} 42... c5 {[%clk 0:00:14]} 43.
Kc3 {[%clk 0:00:18.7]} 43... c4 {[%clk 0:00:14.3]} 44. Kc2 {[%clk 0:00:18.7]}
44... Rh3 {[%clk 0:00:14.8]} 45. Kd2 {[%clk 0:00:18.9]} 45... c3+ {[%clk
0:00:14.6]} 46. Kc2 {[%clk 0:00:19.5]} 46... Ne6 {[%clk 0:00:15.2]} 47. h7
{[%clk 0:00:19.4]} 47... Nd4+ {[%clk 0:00:15.7]} 48. Kb1 {[%clk 0:00:17.2]}
48... c2+ {[%clk 0:00:15.4]} 49. Ka2 {[%clk 0:00:17.2]} 49... Ra3+ {[%clk
0:00:10.1]} 50. Kb2 {[%clk 0:00:15.7]} 50... Rb3+ {[%clk 0:00:10.2]} 51. Ka2
{[%clk 0:00:15.3]} 51... c1=N+ {[%clk 0:00:09.7]} 52. Ka1 {[%clk 0:00:15]} 52...
Nc2# {[%clk 0:00:10.3]} 0-1

[Event "Early-Titled-Tuesday-Blitz-May-07-2024"]
[Site "Chess.com"]
[Date "2024.05.07"]
[Round "4"]
[White "PawnEatingZombie"]
[Black "patzer-reloaded"]
[Result "1-0"]
[WhiteElo "2230"]
[BlackElo "2455"]
[TimeControl "180+1"]
[EndTime "8:43:02 PDT"]
[Termination "PawnEatingZombie won on time"]

1. e4 {[%clk 0:03:00.9]} 1... d6 {[%clk 0:02:58.5]} 2. d4 {[%clk 0:02:58.6]}
2... Nf6 {[%clk 0:02:59.4]} 3. Bd3 {[%clk 0:02:57.7]} 3... g6 {[%clk 0:02:59.7]}
4. Nf3 {[%clk 0:02:54.6]} 4... Bg7 {[%clk 0:03:00]} 5. O-O {[%clk 0:02:54.4]}
5... O-O {[%clk 0:03:00]} 6. c3 {[%clk 0:02:53.6]} 6... Nc6 {[%clk 0:02:56.4]}
7. Re1 {[%clk 0:02:53.1]} 7... e5 {[%clk 0:02:55.6]} 8. dxe5 {[%clk 0:02:53.1]}
8... dxe5 {[%clk 0:02:54.5]} 9. Qc2 {[%clk 0:02:49.5]} 9... Nh5 {[%clk
0:02:50.7]} 10. Nbd2 {[%clk 0:02:47]} 10... Nf4 {[%clk 0:02:49.3]} 11. Bf1
{[%clk 0:02:47]} 11... Bg4 {[%clk 0:02:48.7]} 12. h3 {[%clk 0:02:45.4]} 12...
Be6 {[%clk 0:02:46.9]} 13. Kh2 {[%clk 0:02:40.1]} 13... Qc8 {[%clk 0:02:41.1]}
14. Ng1 {[%clk 0:02:36.5]} 14... g5 {[%clk 0:02:04.9]} 15. g3 {[%clk 0:02:34.9]}
15... Ng6 {[%clk 0:02:04.6]} 16. a4 {[%clk 0:02:21.5]} 16... f5 {[%clk
0:02:03.9]} 17. exf5 {[%clk 0:02:18.9]} 17... Bxf5 {[%clk 0:02:03.5]} 18. Ne4
{[%clk 0:02:18]} 18... g4 {[%clk 0:01:37.6]} 19. h4 {[%clk 0:02:13.5]} 19...
Bxe4 {[%clk 0:00:56.8]} 20. Rxe4 {[%clk 0:02:12.8]} 20... Qf5 {[%clk 0:00:56.8]}
21. Be3 {[%clk 0:02:05.3]} 21... Bf6 {[%clk 0:00:19.5]} 22. Bg2 {[%clk
0:01:54.2]} 22... Bxh4 {[%clk 0:00:16.4]} 23. Qb3+ {[%clk 0:01:23.2]} 23... Kh8
{[%clk 0:00:15.9]} 24. Qxb7 {[%clk 0:01:23.5]} 24... Rae8 {[%clk 0:00:08]} 25.
Qxc6 {[%clk 0:01:22.1]} 25... Re6 {[%clk 0:00:08.7]} 26. Qc5 {[%clk 0:01:19.3]}
26... Rg8 {[%clk 0:00:07]} 27. Rd1 {[%clk 0:01:09.1]} 27... Be7 {[%clk
0:00:06.3]} 28. Qc4 {[%clk 0:01:07.9]} 28... Qh5+ {[%clk 0:00:06.1]} 29. Nh3
{[%clk 0:01:05.8]} 29... gxh3 {[%clk 0:00:05.4]} 30. Bxh3 {[%clk 0:01:06.3]}
30... Rf6 {[%clk 0:00:04.5]} 31. Rd7 {[%clk 0:00:55.1]} 31... Bd6 {[%clk
0:00:04.3]} 32. Rf7 {[%clk 0:00:48.4]} 32... Rxf7 {[%clk 0:00:03.6]} 33. Qxf7
{[%clk 0:00:49.3]} 33... Nf4 {[%clk 0:00:03.8]} 34. Qxh5 {[%clk 0:00:48.1]}
34... Nxh5 {[%clk 0:00:03.4]} 35. Rg4 {[%clk 0:00:34.4]} 35... Nf6 {[%clk
0:00:02.5]} 36. Rxg8+ {[%clk 0:00:34]} 36... Kxg8 {[%clk 0:00:03.4]} 37. Be6+
{[%clk 0:00:31.4]} 37... Kf8 {[%clk 0:00:03.4]} 38. a5 {[%clk 0:00:25.7]} 38...
Ke7 {[%clk 0:00:03.3]} 39. Bc4 {[%clk 0:00:25.3]} 39... c5 {[%clk 0:00:03.8]}
40. a6 {[%clk 0:00:24.6]} 40... Ne8 {[%clk 0:00:03.1]} 41. Kg2 {[%clk
0:00:24.8]} 41... Nc7 {[%clk 0:00:03.6]} 42. b4 {[%clk 0:00:20.9]} 42... cxb4
{[%clk 0:00:03.1]} 43. cxb4 {[%clk 0:00:21.8]} 43... Nxa6 {[%clk 0:00:02.7]} 44.
Bxa6 {[%clk 0:00:20.1]} 44... Bxb4 {[%clk 0:00:03.6]} 45. Bxa7 {[%clk 0:00:20]}
45... Bd6 {[%clk 0:00:03.5]} 46. Be3 {[%clk 0:00:19.3]} 46... Kf6 {[%clk
0:00:03.1]} 47. Bd3 {[%clk 0:00:19.6]} 47... Kg7 {[%clk 0:00:02.6]} 48. Kf3
{[%clk 0:00:18.9]} 48... h6 {[%clk 0:00:03.1]} 49. Ke4 {[%clk 0:00:19.4]} 49...
Bc7 {[%clk 0:00:01.5]} 50. Bd2 {[%clk 0:00:19.8]} 50... Kh7 {[%clk 0:00:00.5]}
51. Bc3 {[%clk 0:00:20.3]} 51... Kg7 {[%clk 0:00:01.3]} 52. Bxe5+ {[%clk
0:00:20]} 52... Kg6 {[%clk 0:00:01.1]} 53. Bxc7 {[%clk 0:00:19.7]} 53... Kg5
{[%clk 0:00:02]} 54. Bf4+ {[%clk 0:00:19.3]} 1-0

[Event "Early-Titled-Tuesday-Blitz-May-07-2024"]
[Site "Chess.com"]
[Date "2024.05.07"]
[Round "4"]
[White "ahmedkandiliii"]
[Black "Shivananda1964"]
[Result "1/2-1/2"]
[WhiteElo "2641"]
[BlackElo "2400"]
[TimeControl "180+1"]
[EndTime "8:43:03 PDT"]
[Termination "Game drawn by repetition"]

1. e4 {[%clk 0:02:47.2]} 1... Nc6 {[%clk 0:02:59.3]} 2. Nf3 {[%clk 0:02:35]}
2... e5 {[%clk 0:02:58.2]} 3. Bb5 {[%clk 0:02:33.4]} 3... a6 {[%clk 0:02:58]} 4.
Ba4 {[%clk 0:02:32.8]} 4... Nf6 {[%clk 0:02:57.2]} 5. O-O {[%clk 0:02:32]} 5...
Be7 {[%clk 0:02:56.4]} 6. Re1 {[%clk 0:02:28.1]} 6... d6 {[%clk 0:02:53.5]} 7.
c3 {[%clk 0:02:26.1]} 7... Bg4 {[%clk 0:02:53]} 8. h3 {[%clk 0:02:25.6]} 8...
Bh5 {[%clk 0:02:52.6]} 9. d3 {[%clk 0:02:21.3]} 9... Nd7 {[%clk 0:02:52.3]} 10.
Nbd2 {[%clk 0:02:17.2]} 10... Nc5 {[%clk 0:02:51.9]} 11. Bc2 {[%clk 0:02:16.8]}
11... Ne6 {[%clk 0:02:51.9]} 12. Nf1 {[%clk 0:02:16.5]} 12... Bg5 {[%clk
0:02:51.6]} 13. Ng3 {[%clk 0:02:14.1]} 13... Bxf3 {[%clk 0:02:50.9]} 14. Qxf3
{[%clk 0:02:12.7]} 14... Bxc1 {[%clk 0:02:51.3]} 15. Raxc1 {[%clk 0:02:12.9]}
15... O-O {[%clk 0:02:51.7]} 16. Nf5 {[%clk 0:02:13.1]} 16... g6 {[%clk
0:02:47.3]} 17. Ne3 {[%clk 0:02:09.4]} 17... Kg7 {[%clk 0:02:25.4]} 18. Qg3
{[%clk 0:02:03.1]} 18... Nf4 {[%clk 0:02:16.9]} 19. Rcd1 {[%clk 0:01:49.3]}
19... Qf6 {[%clk 0:02:11.1]} 20. d4 {[%clk 0:01:37.8]} 20... Kh8 {[%clk
0:01:28.8]} 21. Ng4 {[%clk 0:01:27.3]} 21... Qg7 {[%clk 0:01:28.5]} 22. Ba4
{[%clk 0:01:15.2]} 22... b5 {[%clk 0:01:14.1]} 23. Bb3 {[%clk 0:01:13.2]} 23...
f5 {[%clk 0:01:00.3]} 24. exf5 {[%clk 0:00:57.4]} 24... Rxf5 {[%clk 0:00:54.1]}
25. Ne3 {[%clk 0:00:55]} 25... Rff8 {[%clk 0:00:46.2]} 26. Nd5 {[%clk
0:00:49.9]} 26... Nh5 {[%clk 0:00:35.3]} 27. Qe3 {[%clk 0:00:31.6]} 27... Rae8
{[%clk 0:00:35.1]} 28. a4 {[%clk 0:00:25.9]} 28... Na5 {[%clk 0:00:33.5]} 29.
Ba2 {[%clk 0:00:18]} 29... Nc4 {[%clk 0:00:30.6]} 30. Bxc4 {[%clk 0:00:17.2]}
30... bxc4 {[%clk 0:00:30.5]} 31. Qe2 {[%clk 0:00:17.4]} 31... c6 {[%clk
0:00:25.1]} 32. Nb4 {[%clk 0:00:17.4]} 32... Nf4 {[%clk 0:00:11.6]} 33. Qxc4
{[%clk 0:00:17.6]} 33... Qf6 {[%clk 0:00:03.8]} 34. dxe5 {[%clk 0:00:17.6]}
34... dxe5 {[%clk 0:00:03.8]} 35. Qxc6 {[%clk 0:00:16.5]} 35... Qg5 {[%clk
0:00:04.2]} 36. Kh1 {[%clk 0:00:10.6]} 36... e4 {[%clk 0:00:03.6]} 37. Rg1
{[%clk 0:00:07]} 37... Qh5 {[%clk 0:00:02.5]} 38. Qc7 {[%clk 0:00:03.2]} 38...
Nxh3 {[%clk 0:00:01.7]} 39. gxh3 {[%clk 0:00:03.5]} 39... Qxh3+ {[%clk
0:00:01.6]} 40. Qh2 {[%clk 0:00:04.1]} 40... Qf3+ {[%clk 0:00:01.8]} 41. Qg2
{[%clk 0:00:04.3]} 41... Qh5+ {[%clk 0:00:02.3]} 42. Qh2 {[%clk 0:00:04.5]}
42... Qf3+ {[%clk 0:00:03.1]} 43. Qg2 {[%clk 0:00:03.5]} 43... Qh5+ {[%clk
0:00:03.1]} 44. Qh2 {[%clk 0:00:02.9]} 44... Qf3+ {[%clk 0:00:03.4]} 1/2-1/2